fUST/lending_fUST_20241216
["ID","MTS","AMOUNT","RATE_DAILY","PERIOD"]
[345535249,1734319842166,-725.23,0.00027397,5]
[345535250,1734319842176,-509.36173754,0.00027397,7]
[345535251,1734319842185,-1658.23,0.00027397,7]
[345535252,1734319842195,-73050.37,0.00027397,7]
[345535253,1734319842205,-500.0,0.00027397,7]
[345535254,1734319842300,-500.0,0.00027397,2]
[345535255,1734319842310,-166.12666832,0.00027397,2]
[345535256,1734319842320,-5182.0944052,0.00027397,2]
[345535257,1734319842330,-200.0,0.000274,2]
[345535258,1734319842339,-500.13863086,0.00027472,8]
[345535259,1734319842348,-262.34836332,0.00027499,2]
[345535260,1734319842358,-500.0,0.00027499,2]
[345535261,1734319842367,-500.0,0.00027499,2]
[345535262,1734319842376,-500.0,0.00027499,2]
[345535263,1734319842386,-253.62057261,0.00027499,2]
[345535264,1734319842395,-684.05313848,0.00027499,2]
[345535265,1734319842404,-500.0,0.00027499,2]
[345535266,1734319842413,-500.0,0.00027499,2]
[345535267,1734319842422,-500.0,0.00027499,2]
[345535268,1734319842431,-500.0,0.00027499,2]
[345535269,1734319842440,-684.05313848,0.00027499,2]
[345535270,1734319842449,-500.0,0.00027499,2]
[345535271,1734319842458,-500.0,0.00027499,2]
[345535272,1734319842467,-500.0,0.00027499,2]
[345535273,1734319842476,-500.0,0.00027499,2]
[345535274,1734319842485,-500.0,0.00027499,2]
[345535275,1734319842494,-684.05313848,0.00027499,2]
[345535276,1734319842503,-500.0,0.00027499,2]
[345535277,1734319842513,-344.22252433,0.00027499,2]
[345535278,1734319842522,-684.05313848,0.00027499,2]
[345535279,1734319842531,-500.0,0.00027499,2]
[345535280,1734319842540,-500.0,0.00027499,2]
[345535281,1734319842549,-500.0,0.00027499,2]
[345535282,1734319842560,-684.05313848,0.00027499,2]
[345535283,1734319842573,-500.0,0.00027499,2]
[345535284,1734319842582,-500.0,0.00027499,2]
[345535285,1734319842592,-500.0,0.00027499,2]
[345535286,1734319842601,-684.05313848,0.00027499,2]
[345535287,1734319842610,-500.0,0.00027499,2]
[345535288,1734319842619,-684.05313848,0.00027499,2]
[345535289,1734319842629,-590.05658886,0.00027499,2]
[345535290,1734319842640,-500.0,0.00027499,2]
[345535291,1734319842650,-500.0,0.00027499,2]
[345535292,1734319842660,-684.05313848,0.00027499,2]
[345535293,1734319842670,-500.0,0.00027499,2]
[345535294,1734319842679,-500.0,0.00027499,2]
[345535295,1734319842689,-684.05313848,0.00027499,2]
[345535296,1734319842698,-500.0,0.00027499,2]
[345535297,1734319842707,-500.0,0.00027499,2]
[345535298,1734319842717,-500.0,0.00027499,2]
[345535299,1734319842726,-684.05313848,0.00027499,2]
[345535300,1734319842735,-500.0,0.00027499,2]
[345535301,1734319842744,-684.05313848,0.00027499,2]
[345535302,1734319842753,-500.0,0.00027499,2]
[345535303,1734319842763,-684.05313848,0.00027499,2]
[345535304,1734319842774,-500.0,0.00027499,2]
[345535305,1734319842783,-684.05313848,0.00027499,2]
[345535306,1734319842794,-500.0,0.00027499,2]
[345535307,1734319842803,-500.0,0.00027499,2]
[345535308,1734319842812,-500.0,0.00027499,2]
[345535309,1734319842822,-684.05313848,0.00027499,2]
[345535310,1734319842832,-500.0,0.00027499,2]
[345535311,1734319842842,-500.0,0.00027499,2]
[345535312,1734319842851,-684.05313848,0.00027499,2]
[345535313,1734319842860,-500.0,0.00027499,2]
[345535314,1734319842869,-500.0,0.00027499,2]
[345535315,1734319842879,-684.05313848,0.00027499,2]
[345535316,1734319842888,-500.0,0.00027499,2]
[345535317,1734319842897,-684.05313848,0.00027499,2]
[345535318,1734319842906,-500.0,0.00027499,2]
[345535319,1734319842916,-684.05313848,0.00027499,2]
[345535320,1734319842925,-500.0,0.00027499,2]
[345535321,1734319842935,-684.05313848,0.00027499,2]
[345535322,1734319842944,-500.0,0.00027499,2]
[345535323,1734319842953,-684.05313848,0.00027499,2]
[345535324,1734319842963,-684.05313848,0.00027499,2]
[345535325,1734319842972,-684.05313848,0.00027499,2]
[345535327,1734319842981,-684.05313848,0.00027499,2]
[345535329,1734319842991,-6288.82381808,0.000275,2]
[345535330,1734319843000,-69860.8911826,0.000275,2]
[345535331,1734319843009,-8721.6783158,0.00027575,2]
[345535332,1734319843018,-166.12666832,0.00027644,2]
[345535333,1734319843028,-500.0,0.00027671,7]
[345535334,1734319843037,-500.0,0.00027671,7]
[345535335,1734319843047,-500.0,0.00027671,7]
[345535336,1734319843056,-517.26830468,0.00027671,7]
[345535337,1734319843066,-500.0,0.00027671,7]
[345535338,1734319843076,-500.0,0.00027671,7]
[345535339,1734319843086,-500.0,0.00027671,7]
[345535341,1734319843095,-513.64269642,0.00027671,7]
[345535342,1734319843106,-500.0,0.00027671,7]
[345535344,1734319843115,-500.0,0.00027671,7]
[345535345,1734319843124,-1000.0,0.00027671,2]
[345535347,1734319843134,-500.0,0.00027671,7]
[345535348,1734319843143,-500.0,0.00027671,7]
[345535349,1734319843152,-500.0,0.00027671,7]
[345535350,1734319843161,-500.0,0.00027671,7]
[345535351,1734319843171,-500.0,0.00027671,7]
[345535352,1734319843180,-509.73882818,0.00027671,7]
[345535353,1734319843190,-505.19491867,0.00027671,7]
[345535354,1734319843199,-504.23487329,0.00027671,7]
[345535355,1734319843210,-523.85499727,0.00027671,7]
[345535356,1734319843219,-168.0,0.00027671,7]
[345535357,1734319843228,-500.0,0.00027671,7]
[345535358,1734319843238,-500.0,0.00027671,7]
[345535359,1734319843247,-521.18370466,0.00027671,7]
[345535360,1734319843257,-500.0,0.00027671,7]
[345535361,1734319843267,-500.0,0.00027671,7]
[345535362,1734319843278,-209.87361148,0.00027671,7]
[345535363,1734319843287,-507.07601276,0.00027671,7]
[345535364,1734319843296,-504.81937639,0.00027671,7]
[345535365,1734319843305,-500.0,0.00027671,7]
[345535366,1734319843315,-500.0,0.00027671,7]
[345535367,1734319843326,-500.0,0.00027671,7]
[345535368,1734319843335,-500.0,0.00027671,7]
[345535369,1734319843345,-365.29891626,0.00027671,7]
[345535370,1734319843355,-500.0,0.00027671,7]
[345535371,1734319843365,-500.0,0.00027671,7]
[345535372,1734319843374,-500.0,0.00027671,7]
[345535373,1734319843384,-612.55144436,0.00027671,7]
[345535374,1734319843394,-483.19518879,0.00027671,7]
[345535375,1734319843404,-549.60741935,0.00027671,7]
[345535376,1734319843414,-502.63085816,0.00027671,7]
[345535377,1734319843424,-515.27627266,0.00027671,7]
[345535378,1734319843434,-502.51580994,0.00027671,7]
[345535381,1734319843444,-505.1671724,0.00027671,7]
[345535383,1734319843453,-500.0,0.00027671,7]
[345535385,1734319843463,-519.51557087,0.00027671,7]
[345535386,1734319843472,-503.18730105,0.00027671,7]
[345535389,1734319843482,-504.0577385,0.00027671,7]
[345535391,1734319843491,-500.0,0.00027671,7]
[345535393,1734319843500,-219.14568439,0.00027671,7]
[345535395,1734319843510,-506.29351244,0.00027671,7]
[345535397,1734319843519,-503.9768528,0.00027671,7]
[345535399,1734319843532,-503.79040515,0.00027671,7]
[345535401,1734319843542,-507.94801832,0.00027671,7]
[345535403,1734319843551,-500.0,0.00027671,7]
[345535405,1734319843565,-308.60991339,0.00027671,7]
[345535407,1734319843577,-504.00559524,0.00027671,7]
[345535409,1734319843586,-506.7638453,0.00027671,7]
[345535411,1734319843596,-504.59004627,0.00027671,7]
[345535413,1734319843606,-500.0,0.00027671,7]
[345535415,1734319843615,-500.0,0.00027671,7]
[345535417,1734319843625,-500.0,0.00027671,7]
[345535419,1734319843634,-500.0,0.00027671,7]
[345535421,1734319843644,-328.64434003,0.00027671,7]
[345535423,1734319843654,-500.0,0.00027671,7]
[345535425,1734319843663,-502.62096378,0.00027671,7]
[345535427,1734319843673,-505.27995439,0.00027671,7]
[345535429,1734319843682,-500.0,0.00027671,7]
[345535431,1734319843692,-500.0,0.00027671,7]
[345535433,1734319843701,-504.77057333,0.00027671,7]
[345535435,1734319843710,-502.8526723,0.00027671,7]
[345535437,1734319843720,-502.7848892,0.00027671,7]
[345535438,1734319843730,-503.20692542,0.00027671,7]
[345535440,1734319843739,-386.10589763,0.00027671,7]
[345535443,1734319843748,-374.76403359,0.00027671,7]
[345535445,1734319843758,-500.0,0.00027671,7]
[345535446,1734319843767,-506.2770971,0.00027671,7]
[345535449,1734319843777,-500.0,0.00027671,7]
[345535450,1734319843786,-503.98940354,0.00027671,7]
[345535453,1734319843796,-500.0,0.00027671,7]
[345535455,1734319843805,-500.0,0.00027671,7]
[345535457,1734319843815,-506.95449893,0.00027671,7]
[345535459,1734319843827,-503.62042531,0.00027671,7]
[345535461,1734319843836,-502.65494426,0.00027671,7]
[345535463,1734319843845,-500.0,0.00027671,7]
[345535465,1734319843855,-509.8362244,0.00027671,7]
[345535467,1734319843864,-500.0,0.00027671,7]
[345535469,1734319843873,-500.0,0.00027671,7]
[345535471,1734319843882,-500.0,0.00027671,7]
[345535473,1734319843891,-500.0,0.00027671,7]
[345535475,1734319843900,-322.83351555,0.00027671,7]
[345535477,1734319843910,-500.0,0.00027671,7]
[345535479,1734319843919,-506.22579799,0.00027671,7]
[345535480,1734319843928,-500.0,0.00027671,7]
[345535482,1734319843938,-500.0,0.00027671,7]
[345535485,1734319843947,-507.20653829,0.00027671,7]
[345535487,1734319843957,-500.0,0.00027671,7]
[345535489,1734319843967,-500.0,0.00027671,7]
[345535490,1734319843977,-500.0,0.00027671,7]
[345535493,1734319843987,-505.48390917,0.00027671,7]
[345535495,1734319843997,-500.0,0.00027671,7]
[345535497,1734319844007,-500.0,0.00027671,7]
[345535499,1734319844016,-500.0,0.00027671,7]
[345535501,1734319844026,-500.0,0.00027671,7]
[345535502,1734319844035,-904.47,0.00027671,7]
[345535505,1734319844045,-500.0,0.00027671,7]
[345535507,1734319844054,-500.0,0.00027671,7]
[345535509,1734319844064,-500.0,0.00027671,7]
[345535511,1734319844075,-500.0,0.00027671,7]
[345535512,1734319844084,-505.04767068,0.00027671,7]
[345535515,1734319844094,-500.0,0.00027671,7]
[345535517,1734319844103,-500.0,0.00027671,2]
[345535518,1734319844113,-500.0,0.00027671,7]
[345535520,1734319844122,-500.0,0.00027671,7]
[345535522,1734319844132,-500.0,0.00027671,7]
[345535525,1734319844142,-621.87,0.00027671,7]
[345535527,1734319844151,-500.0,0.00027671,7]
[345535529,1734319844161,-500.0,0.00027671,7]
[345535531,1734319844171,-500.0,0.00027671,7]
[345535533,1734319844181,-500.0,0.00027671,7]
[345535535,1734319844191,-500.0,0.00027671,7]
[345535545,1734319844280,-500.0,0.00027671,7]
[345535547,1734319844290,-500.0,0.00027671,7]
[345535549,1734319844300,-500.0,0.00027671,7]
[345535551,1734319844310,-500.0,0.00027671,7]
[345535553,1734319844320,-1848.89,0.00027671,7]
[345535556,1734319844333,-500.0,0.00027671,7]
[345535558,1734319844343,-500.0,0.00027671,7]
[345535560,1734319844352,-500.0,0.00027671,7]
[345535562,1734319844361,-500.0,0.00027671,7]
[345535564,1734319844370,-3096.15,0.00027671,7]
[345535566,1734319844379,-500.0,0.00027671,7]
[345535567,1734319844388,-916.79,0.00027671,7]
[345535569,1734319844399,-500.0,0.00027671,7]
[345535572,1734319844418,-725.23,0.00027671,5]
[345535574,1734319844433,-1658.23,0.00027671,7]
[345535576,1734319844442,-73050.37,0.00027671,7]
[345535578,1734319844452,-500.0,0.00027671,7]
[345535580,1734319844462,-500.0,0.00027671,2]
[345535582,1734319844471,-315.0,0.00027671,2]
[345535584,1734319844480,-151.0,0.0002783,6]
[345535586,1734319844490,-247.893,0.00027872,2]
[345535588,1734319844499,-2154.0,0.00027872,2]
[345535590,1734319844508,-533.0,0.00027872,2]
[345535592,1734319844517,-2369.0,0.00027872,2]
[345535594,1734319844526,-166.12666832,0.0002789,2]
[345535596,1734319844536,-1000.0,0.00027921,5]
[345535598,1734319844545,-1098.10887286,0.00027921,5]
[345535600,1734319844554,-1000.0,0.00027921,5]
[345535602,1734319844565,-203.57878873,0.00027945,7]
[345535604,1734319844581,-500.0,0.00027945,7]
[345535606,1734319844591,-500.0,0.00027945,7]
[345535608,1734319844601,-1057.94221817,0.00027945,2]
[345535610,1734319844610,-500.0,0.00027945,7]
[345535612,1734319844619,-500.0,0.00027945,7]
[345535614,1734319844628,-500.0,0.00027945,7]
[345535616,1734319844639,-506.19223073,0.00027945,7]
[345535618,1734319844648,-168.0,0.00027945,7]
[345535620,1734319844657,-500.0,0.00027945,7]
[345535622,1734319844666,-500.0,0.00027945,7]
[345535624,1734319844676,-500.0,0.00027945,7]
[345535626,1734319844685,-500.0,0.00027945,7]
[345535628,1734319844695,-477.16012245,0.00027945,7]
[345535630,1734319844705,-509.12446409,0.00027945,7]
[345535632,1734319844714,-500.0,0.00027945,7]
[345535634,1734319844723,-506.33796315,0.00027945,7]
[345535636,1734319844732,-500.0,0.00027945,7]
[345535638,1734319844741,-500.0,0.00027945,7]
[345535640,1734319844750,-503.89135592,0.00027945,7]
[345535642,1734319844759,-511.69054435,0.00027945,7]
[345535644,1734319844769,-500.0,0.00027945,7]
[345535646,1734319844778,-514.1989873,0.00027945,7]
[345535648,1734319844788,-500.0,0.00027945,7]
[345535650,1734319844798,-566.06676919,0.00027945,7]
[345535652,1734319844807,-500.0,0.00027945,7]
[345535654,1734319844816,-502.81964183,0.00027945,7]
[345535656,1734319844828,-500.0,0.00027945,7]
[345535658,1734319844837,-501.80392648,0.00027945,7]
[345535660,1734319844846,-505.12273935,0.00027945,7]
[345535662,1734319844855,-507.99473097,0.00027945,7]
[345535664,1734319844865,-500.0,0.00027945,7]
[345535666,1734319844874,-503.63843253,0.00027945,7]
[345535668,1734319844884,-500.0,0.00027945,7]
[345535670,1734319844893,-500.0,0.00027945,7]
[345535672,1734319844903,-500.0,0.00027945,7]
[345535675,1734319844913,-507.71909494,0.00027945,7]
[345535677,1734319844922,-500.0,0.00027945,7]
[345535679,1734319844931,-520.65637676,0.00027945,7]
[345535681,1734319844941,-500.0,0.00027945,7]
[345535683,1734319844950,-511.54555679,0.00027945,7]
[345535685,1734319844959,-500.0,0.00027945,7]
[345535687,1734319844970,-904.47,0.00027945,7]
[345535689,1734319844980,-500.0,0.00027945,7]
[345535691,1734319844990,-500.0,0.00027945,7]
[345535693,1734319844999,-500.0,0.00027945,7]
[345535695,1734319845009,-515.91504526,0.00027945,7]
[345535697,1734319845018,-500.0,0.00027945,2]
[345535699,1734319845028,-500.0,0.00027945,7]
[345535701,1734319845037,-517.59232035,0.00027945,7]
[345535703,1734319845046,-621.87,0.00027945,7]
[345535705,1734319845056,-500.0,0.00027945,7]
[345535707,1734319845065,-627.46290254,0.00027945,7]
[345535709,1734319845076,-500.0,0.00027945,7]
[345535711,1734319845086,-500.0,0.00027945,7]
[345535713,1734319845095,-500.0,0.00027945,7]
[345535715,1734319845104,-500.0,0.00027945,7]
[345535717,1734319845113,-500.0,0.00027945,7]
[345535719,1734319845123,-500.0,0.00027945,7]
[345535721,1734319845132,-500.0,0.00027945,7]
[345535723,1734319845142,-1848.89,0.00027945,7]
[345535725,1734319845151,-500.0,0.00027945,7]
[345535727,1734319845161,-500.0,0.00027945,7]
[345535729,1734319845170,-500.0,0.00027945,7]
[345535731,1734319845179,-500.0,0.00027945,7]
[345535733,1734319845189,-3096.15,0.00027945,7]
[345535735,1734319845199,-916.79,0.00027945,7]
[345535737,1734319845208,-500.0,0.00027945,7]
[345535739,1734319845218,-725.23,0.00027945,5]
[345535741,1734319845227,-1658.23,0.00027945,7]
[345535743,1734319845237,-73050.37,0.00027945,7]
[345535745,1734319845246,-500.0,0.00027945,7]
[345535747,1734319845257,-159.69164692,0.00027945,2]
[345535749,1734319845267,-315.0,0.00027945,2]
[345535751,1734319845276,-500.89350214,0.00027956,2]
[345535753,1734319845285,-502.13809932,0.00027973,5]
[345535755,1734319845295,-2678.42,0.00028,5]
[345535757,1734319845304,-352175.53497747,0.00028,2]
[345535769,1734319845401,-53306.46502253,0.00028,2]
[345535771,1734319845411,-500.0,0.00028019,2]
[345535773,1734319845420,-8721.6783158,0.00028075,2]
[345535775,1734319845429,-921.50299037,0.00028083,2]
[345535777,1734319845439,-500.0,0.00028087,2]
[345535779,1734319845448,-151.0,0.00028113,6]
[345535780,1734319845457,-166.12666832,0.00028137,2]
[345535782,1734319845467,-4000.0,0.000282,7]
[345535784,1734319845476,-296.370308,0.00028208,4]
[345535787,1734319845486,-310.02418797,0.00028218,2]
[345535788,1734319845496,-347.75103342,0.00028218,2]
[345535790,1734319845506,-212.14733607,0.00028218,2]
[345535792,1734319845515,-500.0,0.00028218,2]
[345535794,1734319845525,-555.16547969,0.00028218,2]
[345535796,1734319845535,-500.0,0.00028218,2]
[345535798,1734319845544,-506.59863113,0.00028219,7]
[345535801,1734319845554,-500.0,0.00028219,7]
[345535803,1734319845567,-500.0,0.00028219,7]
[345535805,1734319845580,-168.0,0.00028219,7]
[345535807,1734319845590,-533.76319349,0.00028219,7]
[345535809,1734319845599,-500.0,0.00028219,7]
[345535811,1734319845610,-500.0,0.00028219,7]
[345535813,1734319845619,-500.0,0.00028219,7]
[345535815,1734319845629,-500.0,0.00028219,7]
[345535817,1734319845639,-500.0,0.00028219,7]
[345535819,1734319845648,-510.71048002,0.00028219,7]
[345535821,1734319845657,-500.0,0.00028219,7]
[345535823,1734319845667,-500.0,0.00028219,7]
[345535825,1734319845676,-500.0,0.00028219,7]
[345535827,1734319845685,-515.44690603,0.00028219,7]
[345535829,1734319845695,-500.0,0.00028219,7]
[345535831,1734319845704,-500.0,0.00028219,7]
[345535833,1734319845714,-500.0,0.00028219,7]
[345535835,1734319845724,-500.0,0.00028219,7]
[345535837,1734319845734,-500.0,0.00028219,7]
[345535839,1734319845744,-904.47,0.00028219,7]
[345535841,1734319845753,-500.0,0.00028219,7]
[345535843,1734319845762,-500.0,0.00028219,7]
[345535845,1734319845772,-230.70944273,0.00028219,2]
[345535847,1734319845781,-500.0,0.00028219,7]
[345535849,1734319845791,-621.87,0.00028219,7]
[345535851,1734319845801,-500.0,0.00028219,7]
[345535853,1734319845810,-500.0,0.00028219,7]
[345535855,1734319845819,-524.19388129,0.00028219,7]
[345535857,1734319845834,-500.0,0.00028219,7]
[345535859,1734319845843,-500.0,0.00028219,7]
[345535861,1734319845853,-1848.89,0.00028219,7]
[345535863,1734319845863,-500.0,0.00028219,7]
[345535866,1734319845873,-500.0,0.00028219,7]
[345535867,1734319845883,-500.0,0.00028219,7]
[345535869,1734319845893,-500.0,0.00028219,7]
[345535871,1734319845903,-3096.15,0.00028219,7]
[345535873,1734319845912,-916.79,0.00028219,7]
[345535876,1734319845922,-520.14651507,0.00028219,7]
[345535878,1734319845931,-725.23,0.00028219,5]
[345535880,1734319845940,-1658.23,0.00028219,7]
[345535882,1734319845950,-38547.37499855,0.00028219,7]
[345535895,1734319846067,-1338.05419005,0.00028219,7]
[345535897,1734319846080,-30733.45142,0.00028219,7]
[345536169,1734319899091,1334.82049639,0.000255,120]
[345536170,1734319899129,3029.17950361,0.000255,120]
[345536174,1734320103204,691.85737708,0.00020222,2]
[345536176,1734320156055,327.358486,0.00013973,2]
[345536177,1734320223220,2411.57573302,0.00020222,2]
[345536220,1734321033426,-327.358486,0.00020447,2]
[345536221,1734321033436,-177.22375,0.00025849,2]
[345536222,1734321033446,-52.28298042,0.00025977,2]
[345536223,1734321033458,-247.71701958,0.00025977,2]
[345536224,1734321033468,-300.0,0.00025977,2]
[345536225,1734321033478,-86.19005841,0.00025978,2]
[345536226,1734321033493,-2754.19669379,0.00025978,2]
[345536227,1734321033737,-1566.54940428,0.00025978,2]
[345536228,1734321033749,-3950.0,0.00025978,2]
[345536229,1734321033762,-599.990339,0.00025978,2]
[345536458,1734321041169,-15943.07350452,0.00025978,2]
[345536460,1734321041179,-241.1368709,0.00026426,2]
[345536462,1734321041188,-327.358486,0.00026921,2]
[345536464,1734321041198,-513.0,0.00027,2]
[345536466,1734321041207,-151.0,0.00027,2]
[345536468,1734321041216,-610.013,0.0002707,2]
[345536470,1734321041225,-3488.6713262,0.00027075,2]
[345536472,1734321041234,-3132.56452927,0.000272,4]
[345536474,1734321041243,-503.4221347,0.00027397,7]
[345536476,1734321041253,-540.61907068,0.00027397,7]
[345536478,1734321041262,-500.0,0.00027397,7]
[345536480,1734321041271,-500.0,0.00027397,7]
[345536482,1734321041280,-502.128653,0.00027397,7]
[345536484,1734321041290,-500.0,0.00027397,7]
[345536486,1734321041299,-500.0,0.00027397,7]
[345536488,1734321041308,-763.99,0.00027397,7]
[345536490,1734321041317,-500.0,0.00027397,7]
[345536492,1734321041326,-500.0,0.00027397,7]
[345536494,1734321041335,-500.0,0.00027397,7]
[345536495,1734321041344,-503.13911303,0.00027397,7]
[345536498,1734321041354,-514.01922108,0.00027397,7]
[345536500,1734321041363,-500.0,0.00027397,7]
[345536501,1734321041372,-500.0,0.00027397,7]
[345536503,1734321041381,-509.9254002,0.00027397,7]
[345536505,1734321041391,-500.0,0.00027397,7]
[345536507,1734321041400,-500.0,0.00027397,7]
[345536509,1734321041411,-511.44720347,0.00027397,7]
[345536512,1734321041421,-558.95731696,0.00027397,7]
[345536514,1734321041430,-500.0,0.00027397,7]
[345536515,1734321041440,-500.0,0.00027397,7]
[345536518,1734321041449,-500.0,0.00027397,7]
[345536520,1734321041459,-500.0,0.00027397,7]
[345536522,1734321041469,-503.62570402,0.00027397,7]
[345536523,1734321041478,-502.54623081,0.00027397,7]
[345536525,1734321041488,-509.22111093,0.00027397,7]
[345536528,1734321041498,-500.0,0.00027397,7]
[345536530,1734321041508,-500.0,0.00027397,7]
[345536532,1734321041517,-501.46467776,0.00027397,7]
[345536534,1734321041527,-500.0,0.00027397,7]
[345536536,1734321041536,-504.79570838,0.00027397,7]
[345536538,1734321041545,-484.71255011,0.00027397,7]
[345536540,1734321041554,-500.0,0.00027397,7]
[345536542,1734321041564,-173.07405917,0.00027397,7]
[345536544,1734321041574,-500.0,0.00027397,7]
[345536546,1734321041584,-503.61115507,0.00027397,7]
[345536548,1734321041593,-507.46704063,0.00027397,7]
[345536550,1734321041602,-501.90130248,0.00027397,7]
[345536552,1734321041611,-500.0,0.00027397,7]
[345536554,1734321041622,-503.06587505,0.00027397,7]
[345536556,1734321041631,-500.0,0.00027397,7]
[345536558,1734321041640,-500.0,0.00027397,7]
[345536560,1734321041650,-507.76186186,0.00027397,7]
[345536562,1734321041659,-504.29986167,0.00027397,7]
[345536563,1734321041675,-510.89063385,0.00027397,7]
[345536565,1734321041685,-753.73,0.00027397,7]
[345536567,1734321041694,-500.0,0.00027397,7]
[345536569,1734321041704,-2580.12,0.00027397,7]
[345536572,1734321041713,-502.75378082,0.00027397,7]
[345536573,1734321041722,-500.0,0.00027397,7]
[345536576,1734321041732,-500.0,0.00027397,7]
[345536578,1734321041741,-500.0,0.00027397,7]
[345536580,1734321041750,-500.0,0.00027397,7]
[345536582,1734321041759,-26792.75171275,0.00027397,7]
[345536584,1734321041771,-14077.44295497,0.00027397,7]
[345537111,1734321047001,-1107.85399389,0.00027397,7]
[345537113,1734321047015,-2514.98318866,0.00027397,7]
[345539836,1734321272615,302.269899,0.00013973,2]
[345539915,1734322139380,295.161466,0.00013973,2]
[345539954,1734322236188,-295.161466,0.00020447,2]
[345539955,1734322236197,-174.7492,0.00025069,2]
[345539956,1734322236206,-176.282187,0.00025753,2]
[345539957,1734322236216,-721.85032584,0.00026,60]
[345539958,1734322236228,-13420.35556815,0.00026,60]
[345539959,1734322236239,-1825.86731986,0.00026,60]
[345542061,1734323043639,265.645319,0.00013973,2]
[345542069,1734323175950,592.09944496,0.00020222,2]
[345542070,1734323197602,50835.58953889,0.00024,30]
[345542072,1734323309765,975.26990124,0.0002,2]
[345542150,1734323432034,-265.645319,0.00020447,2]
[345542152,1734323432044,-1491.00369985,0.00022,2]
[345542154,1734323432053,-200.0,0.000225,2]
[345542156,1734323432062,-172.274652,0.00024072,2]
[345542158,1734323432072,-379.7534914,0.00024509,2]
[345542160,1734323432081,-735.7781319,0.00024845,2]
[345542162,1734323432090,-300.0,0.00024999,2]
[345542164,1734323432100,-300.0,0.00024999,2]
[345542166,1734323432109,-39862.32631455,0.00025,2]
[345542168,1734323432119,-3104.66353323,0.00025346,2]
[345542288,1734323438165,-2691.67577084,0.00025346,2]
[345542289,1734323438175,-65941.6884129,0.00025346,2]
[345542290,1734323438185,-24900.0,0.00025346,2]
[345542291,1734323438195,-5762.24206849,0.00025532,2]
[345542292,1734323438204,-6067.29716335,0.00025753,2]
[345542293,1734323438214,-176.282187,0.00025753,2]
[345542294,1734323438223,-23160.78564803,0.00026,60]
[345542295,1734323438233,-49164.41046111,0.00026,30]
[345542296,1734323438243,-5376.99774968,0.00026,5]
[345542297,1734323438252,-80476.53581588,0.000265,2]
[345542298,1734323438262,-623.421,0.0002681,2]
[345542299,1734323438273,-265.645319,0.00026921,2]
[345542300,1734323438283,-1439.6114787,0.00027,2]
[345542301,1734323438292,-528.0,0.00027,2]
[345542302,1734323438301,-4535.2727242,0.00027075,2]
[345542303,1734323438311,-420.0,0.00027082,2]
[345542304,1734323438320,-17198.95254176,0.000273,2]
[345542305,1734323438330,-500.0,0.00027373,2]
[345542306,1734323438339,-500.0,0.00027373,2]
[345542307,1734323438349,-500.0,0.00027397,7]
[345542308,1734323438359,-517.26830468,0.00027397,7]
[345542309,1734323438370,-432.46744081,0.00027397,7]
[345542310,1734323438379,-500.0,0.00027397,7]
[345542311,1734323438388,-504.23487329,0.00027397,7]
[345542312,1734323438398,-523.85499727,0.00027397,7]
[345542313,1734323438407,-500.0,0.00027397,7]
[345542314,1734323438416,-500.0,0.00027397,7]
[345542315,1734323438424,-500.0,0.00027397,7]
[345542316,1734323438433,-513.64269642,0.00027397,7]